Cogmind - Beta 14 *** ADVENTURER MODE // 2024.08.14 @ 15:11:05 Player: scalychimp Result: Destroyed by Y-54 Guardian with Flak Gun Performance ------------- Evolutions (3) 1500 Regions Visited (7) 1400 Robots Destroyed (175) 875 Value Destroyed (4939) 4939 Prototype IDs (10) 200 Alien Tech Used (0) 0 Bonus (241) 241 TOTAL SCORE: 9155 Bonus ------- High Alert Combat Kills 241 Cogmind --------- Core Integrity 0/700 Matter 206/300 Energy 285/310 System Corruption 21% Temperature Cool (21) Movement Walking (120) Location -7/Factory Parts ------- > --- POWER (1) -------- Cooled Deuterium Engine > --- PROPULSION (4) --- Improved Aluminum Leg Improved Aluminum Leg Carbon-fiber Leg > --- UTILITY (6) ------ Advanced Visual Processing Unit Improved Sensor Array Microactuators Transmission Jammer Reaction Control System > --- WEAPON (2) ------- Great Axe > --- INVENTORY (5) ---- Micro Nuclear Core Medium Storage Unit Improved Signal Interpreter Core Analyzer Rocket Launcher Peak State ------------ > --- POWER ------------ Deuterium Engine > --- PROPULSION ------- Medium Treads Medium Treads Medium Treads Medium Treads > --- UTILITY ---------- High-capacity Storage Unit High-capacity Matter Pod Improved Sensor Array Improved Signal Interpreter Advanced Targeting Computer Hardened Medium Armor Plating > --- WEAPON ----------- Minigun Gauss Rifle > --- INVENTORY -------- Light Treads Light Treads Light Treads Light Treads Light Treads Cryofiber Web Improved Heat Sink Hardened Medium Armor Plating Hacking Suite Hacking Suite High-powered Tractor Beam Gauss Rifle Gauss Rifle Gauss Rifle EMP Blaster Rocket Launcher Rocket Launcher Improved Grenade Launcher [Rating: 44] Favorites ----------- Power Deuterium Engine Engine Deuterium Engine Power Core Light Nuclear Core Propulsion Light Treads Treads Light Treads Leg Improved Aluminum Leg Hover Unit Gravmag System Flight Unit Xenon Bombardment Thruster Utility Hardened Medium Armor Plating Device Improved Sensor Array Storage High-capacity Storage Unit Processor Advanced Targeting Computer Hackware Hacking Suite Protection Hardened Medium Armor Plating Weapon Improved Light Cannon Energy Gun Particle Gun Energy Cannon Advanced Beam Cannon Ballistic Gun Minigun Ballistic Cannon Improved Light Cannon Launcher EMP Blaster Impact Weapon Mace Slashing Weapon Axe Build | -11 -10 -9 -9 -8 -7 -7 -7 ------- Run | Yrd Mat Mat Min Mat Fac Was Fac Slots Evolved 6 | . . 2 . 2 2 . . Power . | . . . . . . . . Propulsion 2 | . . 1 . 1 . . . Utility 4 | . . 1 . 1 2 . . Weapon . | . . . . . . . . Parts Attached 188 | 6 28 17 1 64 15 4 53 Power 16 | 1 1 2 . 1 3 . 8 Engine 9 | 1 . 2 . 1 2 . 3 Core 7 | . 1 . . . 1 . 5 Reactor . | . . . . . . . . Propulsion 44 | 2 5 5 . 10 2 3 17 Treads 26 | . 5 5 . 10 2 3 1 Leg 12 | 2 . . . . . . 10 Wheel . | . . . . . . . . Hover 1 | . . . . . . . 1 Flight 5 | . . . . . . . 5 Utility 61 | . 6 4 1 26 6 1 17 Device 27 | . 3 1 . 13 2 1 7 Storage 6 | . 3 . 1 1 1 . . Processor 6 | . . 1 . 2 . . 3 Hackware 4 | . . . . . 1 . 3 Protection 18 | . . 2 . 10 2 . 4 Artifact . | . . . . . . . . Weapon 67 | 3 16 6 . 27 4 . 11 Energy Gun 11 | 2 7 . . 1 . . 1 Energy Cannon 8 | . . 1 . 6 . . 1 Ballistic Gun 16 | 1 . . . 10 2 . 3 Ballistic Cannon 13 | . 2 3 . 7 1 . . Launcher 15 | . 6 2 . 3 1 . 3 Special Weapon . | . . . . . . . . Impact Weapon 1 | . 1 . . . . . . Slashing Weapon 3 | . . . . . . . 3 Piercing Weapon . | . . . . . . . . Special Melee Weapon . | . . . . . . . . Unidentified Prototypes 8 | . . 1 . 3 1 . 3 Parts Lost 31 | . . 2 . 10 4 6 9 Power 3 | . . 1 . . . 1 1 Propulsion 8 | . . . . 3 . 2 3 Utility 11 | . . 1 . 2 4 1 3 Weapon 9 | . . . . 5 . 2 2 Highest Loss Streak 6 | . . 2 . 2 2 6 4 To Critical Strikes . | . . . . . . . . Average Slot Usage (%) 93 | . 98 94 100 98 97 31 78 Engine 6 | . 5 4 11 9 7 2 2 Core 2 | . 8 6 . . . . 2 Treads 25 | . 25 31 33 35 30 8 . Leg 4 | . 2 . . . . . 19 Device 8 | . 8 11 . 7 6 2 14 Storage 9 | . 18 11 11 9 15 6 . Processor 6 | . . 1 11 9 2 . 10 Hackware 2 | . . . . . 5 2 11 Protection 6 | . . 5 11 9 11 2 2 Energy Gun 1 | . 5 . . . . . 1 Energy Cannon 1 | . . . . 3 . . 3 Ballistic Gun 2 | . . . . 4 14 5 . Ballistic Cannon 11 | . 14 21 22 10 . . . Launcher 1 | . 7 . . . . . . Slashing Weapon 1 | . . . . . . . 5 Peak Build Rating 44 | 5 13 19 19 41 44 41 44 Average Rating 23 | 3 11 16 19 27 41 13 32 On Entrance 17 | . 5 13 19 19 40 41 1 Naked Turns 73 | . . . . . . 73 . Heaviest Build 80 | 5 36 51 65 73 80 68 29 Greatest Support 112 | 20 46 60 60 112 112 96 56 Greatest Overweight (x) 14 | 1 1 . 1 1 . 14 4 Average Overweight (x) . | . . . . . . . . Largest Inventory Capacity 20 | 5 15 15 20 20 20 20 5 Average Capacity 15 | 5 14 15 19 20 20 10 5 Most Carried 20 | 1 12 15 18 20 20 20 5 Average Carried 12 | . 7 13 17 18 16 10 4 Final Capacity 20 | 5 15 15 20 20 20 5 5 Final Carried 20 | 1 11 14 18 20 20 5 5 Class Distribution -------------------- 55% | Mutant 22% | Scavenger-Mutant 21% | Hacker-Mutant Dominant Class ---------------- Mutant | -10/Materials Mutant | -9/Materials Mutant | -9/Mines Scavenger-Mutant | -8/Materials Hacker-Mutant | -7/Factory Mutant | -7/Waste Hacker-Mutant | -7/Factory Resources | -11 -10 -9 -9 -8 -7 -7 -7 ----------- Run | Yrd Mat Mat Min Mat Fac Was Fac Matter Collected 4459 | 260 389 530 292 1940 293 . 755 Remotely 496 | . . . . 496 . . . Salvage Created 5083 | 46 667 1037 143 1736 495 . 959 Parts 357 | . 56 83 9 114 34 . 61 Haulers Intercepted 14 | . 2 2 . 6 1 . 3 Recyclers Shooed 2 | . 1 . . 1 . . . Parts Field Recycled . | . . . . . . . . Retrieved Matter . | . . . . . . . . Parts Self-Destructed . | . . . . . . . . Prevented . | . . . . . . . . Kills | -11 -10 -9 -9 -8 -7 -7 -7 ------- Run | Yrd Mat Mat Min Mat Fac Was Fac Combat Hostiles Destroyed 132 | 1 18 27 5 50 11 . 20 Melee 14 | . . 1 . 1 1 . 11 Guns 22 | 1 4 . . 4 10 . 3 Cannons 68 | . 4 19 5 40 . . . AOE 28 | . 10 7 . 5 . . 6 Classes Destroyed 15 | 1 5 4 1 3 . . 1 Worker 6 | . . 1 . 2 2 . 1 Builder 3 | . 2 . . . 1 . . Tunneler 1 | . 1 . . . . . . Hauler 14 | . 2 2 . 6 1 . 3 Recycler 4 | . . 3 . 1 . . . Mechanic 1 | . . . . 1 . . . Operator 1 | . . . . 1 . . . Watcher 15 | . 3 5 . 5 . . 2 Swarmer 43 | . 9 11 . 11 4 . 8 Grunt 52 | 1 9 8 4 22 6 . 2 Brawler 5 | . . 1 . 3 1 . . Duelist 4 | . . . 1 2 . . 1 Sentry 21 | . . 7 . 11 . . 3 Hunter 3 | . . . . 1 . . 2 Programmer 4 | . . . . . . . 4 Best Kill Streak 14 | 1 6 14 3 9 4 . 3 Combat Bots Only 11 | 1 4 11 3 7 3 . 3 Max Kills in Single Turn 4 | 1 3 4 1 2 1 . 3 Gunslinging . | . . . . . . . . Exploded 4 | . 2 4 . 2 . . 3 Melee 1 | . . 1 . 1 1 . 1 Uniques/NPCs Destroyed . | . . . . . . . . Combat | -11 -10 -9 -9 -8 -7 -7 -7 -------- Run | Yrd Mat Mat Min Mat Fac Was Fac Hostile Shots Fired 966 | 11 57 144 8 253 91 11 391 Missed 322 | 4 17 51 . 71 24 3 152 Damage Taken 6112 | 61 302 643 66 2127 883 259 1771 Core 1019 | 26 41 20 9 223 57 146 497 Absorbed by Shields 331 | . 13 129 . . . . 189 Ignored by Resistances 1921 | 19 102 232 20 619 251 68 610 Regen/Repaired (Parts) 219 | . . 133 . 86 . . . Core Remaining (%) 78 | 89 73 . 92 59 . . . Volleys Fired 365 | 9 32 56 11 160 47 3 47 Largest 2 | 1 2 2 2 2 2 2 2 Hottest 143 | 40 130 78 78 143 64 53 93 Shots Fired 667 | 9 62 109 22 317 93 6 49 Gun 180 | 9 25 . . 32 92 6 16 Cannon 443 | . 10 104 22 279 . . 28 Launcher 44 | . 27 5 . 6 1 . 5 Special . | . . . . . . . . Kinetic 507 | . 10 104 22 262 92 6 11 Thermal 116 | 9 25 . . 49 . . 33 Explosive 12 | . . . . 6 1 . 5 Electromagnetic 32 | . 27 5 . . . . . Robot Hit Streak 33 | 5 9 12 21 33 31 17 10 Robot Miss Streak 5 | 1 5 3 . 2 1 . 4 Penetration Max 1 | . . . . . 1 . 1 Secondary Targets 2 | . . . . . 2 . . Max Gunslinging Chain 1 | . . . . . 1 . . Shots Hit Robots 539 | 8 39 62 19 251 82 6 72 Core Hits 248 | 2 34 47 8 98 26 1 32 Critical Kills 4 | . . . . . 3 . 1 Critical Parts Destroyed 3 | . 1 . . . 2 . . Critical Strikes 24 | . 2 1 . 12 5 . 4 Burn 1 | . 1 . . . . . . Destroy 6 | . . . . . 5 . 1 Blast 13 | . . 1 . 12 . . . Smash 1 | . 1 . . . . . . Sever 3 | . . . . . . . 3 Melee Attacks 54 | . 4 . . . . . 50 Impact 4 | . 4 . . . . . . Slashing 50 | . . . . . . . 50 Piercing . | . . . . . . . . Sneak Attacks 5 | . . . . . . . 5 Combat Hostiles 1 | . . . . . . . 1 Follow-up Attacks . | . . . . . . . . Damage Inflicted 13477 | 90 1280 1631 408 5501 1785 99 2683 Guns 2649 | 90 256 . . 347 1634 99 223 Cannons 6983 | . 151 1357 408 4703 . . 364 Explosions 2005 | . 718 243 . 437 131 . 476 Melee 1705 | . 85 . . . . . 1620 Ramming 135 | . 70 31 . 14 20 . . Kinetic 8032 | . 151 1357 408 4240 1634 99 143 Thermal 1743 | 90 292 107 . 810 . . 444 Explosive 1044 | . . . . 437 131 . 476 Electromagnetic 818 | . 682 136 . . . . . Impact 85 | . 85 . . . . . . Slashing 1620 | . . . . . . . 1620 Piercing . | . . . . . . . . Highest Corruption 21 | . 1 . . 1 5 19 21 Average Corruption 7 | . 1 . . 1 4 10 19 Corruption Purged . | . . . . . . . . Corruption Blocked . | . . . . . . . . Effects 172 | . 16 . . 25 15 5 111 Message Errors 49 | . 4 . . 6 6 2 31 Matter Fused 31 | . 3 . . 6 1 . 21 Heat Flow Errors 19 | . 1 . . 2 1 . 15 Energy Discharges 32 | . 3 . . 3 4 . 22 Parts Rejected 3 | . . . . . 1 . 2 Parts Fused 1 | . . . . . . . 1 Data Loss (minor) 11 | . 2 . . 2 . 1 6 Data Loss (major) 7 | . 2 . . 2 1 . 2 Misfires 4 | . 1 . . . . . 3 Alerts 8 | . . . . 2 1 . 5 Misdirections 3 | . . . . . . 2 1 Weapon Failures 4 | . . . . 2 . . 2 Overload Shots . | . . . . . . . . Overflow Damage 309 | . 61 42 . 64 1 . 141 Projectiles 90 | . . 15 . 64 . . 11 Explosions 97 | . 21 27 . . . . 49 Melee 122 | . 40 . . . 1 . 81 Knockbacks 48 | . 1 6 1 40 . . . Impact 1 | . 1 . . . . . . Kinetic 39 | . . 6 1 32 . . . Secondary 8 | . . . . 8 . . . Self-Inflicted Damage 49 | . 11 1 . 37 . . . Shots 6 | . 2 1 . 3 . . . Rammed 29 | . 19 8 . 1 1 . . Targets Rammed 31 | . 19 8 . 2 2 . . Kicked . | . . . . . . . . Crushed 2 | . . . . 1 1 . . Highest Temperature 341 | 18 281 150 185 341 154 . 275 Average Temperature 68 | 10 68 41 77 79 26 . 79 Received Heat Transfer 2308 | 42 117 207 48 1224 369 . 301 Effects 3 | . . . . 2 . . 1 Interference 3 | . . . . 2 . . 1 Siege Activations . | . . . . . . . . Robots Corrupted 1 | . 1 . . . . . . Combat Hostiles . | . . . . . . . . Parts Fried 4 | . 4 . . . . . . Impact Corruptions 4 | . 3 . . . 1 . . Robots Melted . | . . . . . . . . Combat Hostiles . | . . . . . . . . Parts Melted 6 | 1 2 . . 2 . . 1 Heat Transferred 3323 | 200 753 150 . 1443 . . 777 Parts Sabotaged . | . . . . . . . . Parts Stolen . | . . . . . . . . Parts Stripped . | . . . . . . . . Power Chain Reactions 6 | . 4 2 . . . . . Alert | -11 -10 -9 -9 -8 -7 -7 -7 ------- Run | Yrd Mat Mat Min Mat Fac Was Fac Peak Influence 688 | 20 522 535 105 688 258 43 211 Initial 105 | . 11 . 105 . . 43 . Average 158 | 13 230 259 40 219 95 9 66 Maximum Alert Level 2 | . 2 2 . 2 1 . 1 Low Security (%) 68 | 100 47 33 100 55 94 100 91 Level 1 16 | . 28 39 . 17 5 . 8 Level 2 15 | . 23 27 . 26 . . . Level 3 . | . . . . . . . . Level 4 . | . . . . . . . . Level 5 . | . . . . . . . . High Security . | . . . . . . . . Max Security . | . . . . . . . . Sterilizations 1 | . . . . 1 . . . Squads Dispatched 21 | . 2 3 . 9 1 . 6 Investigation 6 | . 2 . . 3 . . 1 Extermination 4 | . . . . . . . 4 Reinforcement 8 | . . 3 . 3 1 . 1 Assault . | . . . . . . . . Garrison 3 | . . . . 3 . . . Intercept . | . . . . . . . . Searches Triggered . | . . . . . . . . Construction Impeded . | . . . . . . . . Haulers Reinforced 1 | . . . . . 1 . . Active Scanning Responses . | . . . . . . . . Cargo Convoy Interrupts . | . . . . . . . . Stealth | -11 -10 -9 -9 -8 -7 -7 -7 --------- Run | Yrd Mat Mat Min Mat Fac Was Fac Distress Signals 6 | . . 3 . 2 1 . . Communications Jammed 25 | . . . . . . . 25 Distress Signals 25 | . . . . . . . 25 Times Spotted 191 | 1 25 36 2 65 16 6 40 Peak Tracking Total 9 | 1 3 9 2 5 5 6 4 Tactical Retreats 9 | . 1 1 . 2 1 . 4 Traps | -11 -10 -9 -9 -8 -7 -7 -7 ------- Run | Yrd Mat Mat Min Mat Fac Was Fac Traps Triggered 7 | . 5 . . . 1 . 1 Indirectly 1 | . 1 . . . . . . Trap Hack Attempts . | . . . . . . . . Triggered . | . . . . . . . . Disarmed . | . . . . . . . . Reprogrammed . | . . . . . . . . Reused . | . . . . . . . . Traps Extracted . | . . . . . . . . Installed . | . . . . . . . . Triggered . | . . . . . . . . Machines | -11 -10 -9 -9 -8 -7 -7 -7 ---------- Run | Yrd Mat Mat Min Mat Fac Was Fac Machines Disabled 3 | . 1 2 . . . . . Max in Single Turn 1 | . 1 1 . . . . . Garrison Access 1 | . . . . 1 . . . Machines Repaired . | . . . . . . . . Machines Dismantled . | . . . . . . . . Machines Sabotaged . | . . . . . . . . Overloaded Fab Kills . | . . . . . . . . Hacking | -11 -10 -9 -9 -8 -7 -7 -7 --------- Run | Yrd Mat Mat Min Mat Fac Was Fac Machines Accessed 21 | . 6 3 . 9 . . 3 Terminals 14 | . 5 2 . 5 . . 2 Fabricators 1 | . . . . . . . 1 Repair Stations 2 | . . 1 . 1 . . . Recycling Units 2 | . 1 . . 1 . . . Scanalyzers 1 | . . . . 1 . . . Garrison Access 1 | . . . . 1 . . . Total Hacks 47 | . 14 6 . 21 . . 6 Successful 30 | . 7 4 . 15 . . 4 Failed 17 | . 7 2 . 6 . . 2 Catastrophic 3 | . 3 . . . . . . Database Lockouts . | . . . . . . . . Manual 12 | . 7 1 . 3 . . 1 Terminals 38 | . 13 4 . 16 . . 5 Fabricators 1 | . . . . . . . 1 Repair Stations 4 | . . 2 . 2 . . . Recycling Units 2 | . 1 . . 1 . . . Scanalyzers 1 | . . . . 1 . . . Garrison Access 1 | . . . . 1 . . . Terminal Hacks 21 | . 6 2 . 10 . . 3 Prototype ID Bank 1 | . . . . 1 . . . Branch Access Points 3 | . . . . 2 . . 1 Recycling Unit Index 1 | . 1 . . . . . . Alert Level 5 | . . 2 . 2 . . 1 Unreport Threat 3 | . . . . 3 . . . Locate Traps 2 | . . . . 1 . . 1 Dispatch Records 1 | . 1 . . . . . . Security Status 1 | . 1 . . . . . . Transport Status 1 | . 1 . . . . . . Hauler Manifests 1 | . 1 . . . . . . Zone Layout 2 | . 1 . . 1 . . . Fabricator Hacks 1 | . . . . . . . 1 Network Status 1 | . . . . . . . 1 Repair Station Hacks 4 | . . 2 . 2 . . . Scan Component 2 | . . 1 . 1 . . . Repair 2 | . . 1 . 1 . . . Recycling Unit Hacks 2 | . 1 . . 1 . . . Report Inventory 2 | . 1 . . 1 . . . Scanalyzer . | . . . . . . . . Garrison Access Hacks . | . . . . . . . . Unauthorized Hacks 2 | . . . . 2 . . . Terminals . | . . . . . . . . Fabricators . | . . . . . . . . Repair Stations . | . . . . . . . . Recycling Units . | . . . . . . . . Scanalyzers 1 | . . . . 1 . . . Extract 1 | . . . . 1 . . . Garrison Access 1 | . . . . 1 . . . Jam 1 | . . . . 1 . . . Data Cores Recovered 1 | . . . . 1 . . . Used 1 | . . . . 1 . . . Hacking Detections 14 | . 4 2 . 6 . . 2 Full Trace Events 3 | . 1 . . 1 . . 1 Feedback Events . | . . . . . . . . Feedback Blocked . | . . . . . . . . Robot Schematics Acquired . | . . . . . . . . Robots Built . | . . . . . . . . Authchips . | . . . . . . . . Time . | . . . . . . . . Total Robot Build Rating . | . . . . . . . . Part Schematics Acquired 2 | . . . . 2 . . . Parts Built . | . . . . . . . . Authchips . | . . . . . . . . Time . | . . . . . . . . Total Part Build Rating . | . . . . . . . . Parts Repaired 2 | . . 1 . 1 . . . Time 52 | . . 26 . 26 . . . Parts Recycled . | . . . . . . . . Recycled Matter . | . . . . . . . . Retrieved Matter . | . . . . . . . . Retrieved Components . | . . . . . . . . Parts Scanalyzed . | . . . . . . . . Part Schematics Acquired . | . . . . . . . . Parts Damaged . | . . . . . . . . Bothacking | -11 -10 -9 -9 -8 -7 -7 -7 ------------ Run | Yrd Mat Mat Min Mat Fac Was Fac Used RIF Installer . | . . . . . . . . Robots Hacked . | . . . . . . . . Non-combat . | . . . . . . . . Combat . | . . . . . . . . Robot Hacks Applied . | . . . . . . . . Relay Couplers Released . | . . . . . . . . Fabnet Peak Effective % . | . . . . . . . . Robots Rewired . | . . . . . . . . Allies Hacked . | . . . . . . . . Hacks Repelled . | . . . . . . . . Allies | -11 -10 -9 -9 -8 -7 -7 -7 -------- Run | Yrd Mat Mat Min Mat Fac Was Fac Total Allies 1 | . . . . . . 1 . Largest Group 1 | . . . . . . 1 . Highest-Rated Group 31 | . . . . . . 31 . Highest-Rated Ally 31 | . . . . . . 31 . Total Orders . | . . . . . . . . Ally Attacks 4 | . . . . . . 4 . Total Damage 42 | . . . . . . 42 . Kills . | . . . . . . . . Allies Corrupted . | . . . . . . . . Allies Melted . | . . . . . . . . Intel | -11 -10 -9 -9 -8 -7 -7 -7 ------- Run | Yrd Mat Mat Min Mat Fac Was Fac Robot Analysis Total . | . . . . . . . . Derelict Logs Recovered 2 | . . . 2 . . . . Drone Launches . | . . . . . . . . Drone Recoveries . | . . . . . . . . Exploration | -11 -10 -9 -9 -8 -7 -7 -7 ------------- Run | Yrd Mat Mat Min Mat Fac Was Fac Turns Passed 12392 | 181 2219 1262 1849 3804 543 117 2417 Spaces Moved 6834 | 160 1284 620 751 1885 228 145 1761 Core 563 | 63 . . . . . 130 370 Treads 4712 | . 1164 620 751 1885 228 15 49 Legs 1334 | 97 120 . . . . . 1117 Wheels . | . . . . . . . . Hover 162 | . . . . . . . 162 Flight 63 | . . . . . . . 63 Fastest Speed 35 | 50 120 160 160 160 160 50 35 Average Speed 153 | 95 156 160 238 165 164 68 109 Slowest Speed 750 | 120 240 160 240 240 165 750 355 Overloaded Moves . | . . . . . . . . Propulsion Burnouts . | . . . . . . . . Robots Hopped . | . . . . . . . . Cave-ins Triggered . | . . . . . . . . Exploration Rate (%) 58 | 9 98 54 97 97 6 76 29 Regions Visited 7 Branch Regions 1 Pre-discovered Areas . | . . . . . . . . Known Exits Taken 1 | . . . . 1 . . . Unknown Exits Taken 4 | 1 1 1 1 . . . . Scrap Searched 2 | . . . 2 . . . . Spaces Dug 1 | . . . . . . . 1 Terrain Destroyed 138 | . 19 5 . 59 6 . 49 Melee 1 | . . . . . . . 1 Projectile 15 | . 1 5 . 8 . . 1 AOE 122 | . 18 . . 51 6 . 47 Terrain Rammed . | . . . . . . . . Walls Destroyed . | . . . . . . . . Machines Disabled . | . . . . . . . . Actions | -11 -10 -9 -9 -8 -7 -7 -7 --------- Run | Yrd Mat Mat Min Mat Fac Was Fac Total 7970 | 175 1406 777 785 2249 309 156 2113 Wait 348 | . 24 47 18 92 4 1 162 Move 6828 | 159 1283 619 750 1884 228 144 1761 Hop . | . . . . . . . . Pick Up 69 | 1 8 14 4 22 8 1 11 Fast Attach 53 | 5 7 5 . 4 1 1 30 Attach 35 | . 1 1 . 15 5 3 10 Detach 16 | . 4 1 . 5 . . 6 Swap 101 | 1 20 11 1 46 9 . 13 Drop 69 | . 4 15 1 19 5 2 23 Fire 365 | 9 32 56 11 160 47 3 47 Melee 54 | . 4 . . . . . 50 Ram 1 | . . . . . . 1 . Kick . | . . . . . . . . Crush 31 | . 19 8 . 2 2 . . Escape Stasis . | . . . . . . . . Rewire . | . . . . . . . . Trap . | . . . . . . . . Miscellaneous . | . . . . . . . . Route ------- -11/Scrapyard -10/Materials (discovered 4 exits: *Mat x3 / [*Min]) -9/Materials (discovered 5 exits: *Mat / [*Min x2] / [*Sto x2]) -9/Mines (discovered 2 exits: *Mat x2) -8/Materials (discovered 3 exits: *Fac x3) -7/Factory -7/Waste -7/Factory (discovered 3 exits: [*Fac] / *Low x2) History --------- Turn | Location | Event 2 | -11/Scrapyard | Met Revision 17 21 | -11/Scrapyard | Discovered new exit (range 8) 182 | -11/Scrapyard | Entered Materials 311 | -10/Materials | Build established: Mutant 700 | -10/Materials | Discovered new exit (range 15) 952 | -10/Materials | Discovered new exit (range 7) 1630 | -10/Materials | Discovered new exit (range 7) 2196 | -10/Materials | Discovered new exit (range 4) 2401 | -10/Materials | Entered another Materials area 2401 | -9/Materials | Evolved 2 slots: Propulsion x1, Utility x1 2490 | -9/Materials | Discovered new exit (range 14) 2625 | -9/Materials | Repaired Lgt. Treads 2730 | -9/Materials | Discovered new exit (range 6) 2879 | -9/Materials | Discovered new exit (range 15) 3043 | -9/Materials | Discovered new exit (range 3) 3211 | -9/Materials | Destroyed 11 combat bots 3529 | -9/Materials | Discovered new exit (range 7) 3663 | -9/Materials | Entered Mines 3704 | -9/Mines | Met a Derelict bent on vengeance 3739 | -9/Mines | Received a Rocket Launcher from a helpful Derelict 3740 | -9/Mines | Learned 4 Materials zone layouts 3742 | -9/Mines | Discovered new exit (range 7) 4286 | -9/Mines | Learned Materials stockpile data 4532 | -9/Mines | Discovered new exit (range 9) 4599 | -9/Mines | Assisted by bots powering up and referring to "LRC-V3" 5512 | -9/Mines | Entered Materials 5512 | -8/Materials | Evolved 2 slots: Propulsion x1, Utility x1 5866 | -8/Materials | Repaired Lgt. Treads 6177 | -8/Materials | Build established: Scavenger-Mutant 6273 | -8/Materials | Destroyed 7 combat bots 6554 | -8/Materials | Garrison activated, responded to threat 6857 | -8/Materials | Discovered new exit (range 12) 7288 | -8/Materials | Discovered new exit (range 9) 7953 | -8/Materials | Discovered new exit (range 11) 8828 | -8/Materials | Build established: Mutant 9219 | -8/Materials | Sterilization system engaged 9219 | -8/Materials | Non-combat units ordered to evacuate 9314 | -8/Materials | Identified exit to Factory 9316 | -8/Materials | Entered Factory 9316 | -7/Factory | Evolved 2 slots: Utility x2 9746 | -7/Factory | Build established: Hacker-Mutant 9859 | -7/Factory | Sucked down chute 9859 | -7/Factory | Entered Waste 9860 | -7/Waste | Met a frightened Derelict 9869 | -7/Waste | Spotted C-40 Crusher 9872 | -7/Waste | Spotted C-40 Crusher 9873 | -7/Waste | Spotted C-40 Crusher 9874 | -7/Waste | EMP discharged 9874 | -7/Waste | System corruption reached 10% 9885 | -7/Waste | Crushed by Compactor (1 part destroyed, 1 dropped) 9891 | -7/Waste | Crushed by Compactor (1 part destroyed, 1 dropped) 9892 | -7/Waste | Crushed by Compactor (1 part destroyed, 2 dropped) 9894 | -7/Waste | Crushed by Compactor (1 part destroyed, 2 dropped) 9898 | -7/Waste | Crushed by Compactor (1 part destroyed, 1 dropped) 9901 | -7/Waste | Crushed by Compactor (1 part destroyed, 2 dropped) 9918 | -7/Waste | Spotted C-40 Crusher 9932 | -7/Waste | Lost 6 parts (1p2n1u2w) 9933 | -7/Waste | Spotted C-40 Crusher 9936 | -7/Waste | Spotted C-40 Crusher 9964 | -7/Waste | Discovered new exit (range 13) 9974 | -7/Waste | EMP discharged 9976 | -7/Waste | Entered Factory 10221 | -7/Factory | Core integrity fell below 50% 10256 | -7/Factory | Lost 4 parts (1p1n1u1w) 10475 | -7/Factory | Discovered new exit (range 8) 11023 | -7/Factory | Identified exit to Lower Caves 11302 | -7/Factory | Discovered new exit (range 15) 12085 | -7/Factory | Core integrity fell below 20% 12393 | -7/Factory | Destroyed by Y-54 Guardian with Flak Gun Last Messages --------------- DZ E9UDRJG3KMRXXFNR5D3HR M-13 Machinist repairs Imp. Hover Unit. System corrupted: Matter fused (-6). K-01 Serf cleans the Nuclear Reactor. M-13 Machinist repairs W-25 Informer. /PZ:NJXJ2HNVZWOQEJ>#|PRD K-01 Serf cleans the Nuclear Reactor. M:4PLQWFQN:KT24D8PE0 TIL,E2Z>B#T:HZDX7RK System corrupted: Matter fused (-10). System corrupted: Substantial component data lost. System corrupted: Energy discharge (-62). Imp. Light Armor Plating severed. System corrupted: Energy discharge (-63). L-41 Fighter Carbon-fiber Leg severed. Imp. Aluminum Leg destroyed. Ion Cannon destroyed. L-41 Fighter destroyed. [Achievement: Just Browsing] [Achievement: Achiever] Map ----- +----------------------------------------------------+ | | | | | ?????????????????????????????? | | ?????????????????????????????? | | ?????????????????????????????? | | ?????????????????????????????? | | ?????????????????????????????? | | ?????????????????????????????? | | ?????????????????????????????? | | ?????????????????????????????? | | ?????????????????????????????? | | ?????????????????????????????? | | ?????????????????????????????? | | ?????????????????????????????? | | ?????????????????????????????? | | ?????????????????????????????? | | ?????????????????????????????? | | ?????????????????????????????? | | ?????????????????????????????? | | #######??????????????????????? | | # #??????????????????????? | | # #??????????????????????? | | # #?#????????????????????? | | # # ######### #????? | | # !# ! #????? | | # ! @/% +????? | | # !#! Y g #????? | | # ###+###+### #????? | | #] #??? ??????? = ??????? | | # #????""?????# #??????? | | # #?????"" ???# #??????? | | # #??????" #??# #??????? | | #####+#???????????# #??????? | | ????# #???????????# #??????? | | ????# #???????????# #??????? | | ????# #???????????# #??????? | | ????# #???????????# #?###### | | ????# #???????????# #?# | | ????# #???????????# #?# | | ????# #???????????# #?# | | ????# ############# #?# """ | | ????# #?# """ | | ????# ### #?# """ | | #####+### """ """ ### | | # # """ """ # | | # """ # """ """ ##+### | | # """ # | | # """ # """ """ | | # ! # """ """ | | # """ / """ """ ##+### | +----------------------------------------------------+ Best States ------------- Heat Dissipation 48 Energy Generation 18 Energy Capacity 360 Matter Stores 492 Matter Capacity 500 Sight Range 20 Robot Scan Range 15 Terrain Scan Density 10 ECM Strength 2 Jamming Range 12 Additional Mass Support 6 Base Temperature (-) 100 Armor Coverage 450 Resistance: KI 20 Resistance: TH 20 Resistance: EX 20 Resistance: EM 20 Resistance: I 20 Resistance: S 20 Resistance: P 20 Propulsion Shielding 66 Melee Speed Boost 20 Evasion (%) 63 Targeting Accuracy 8 Recoil Reduction 4 Offensive Hacking 30 Defensive Hacking 10 Item Schematics ----------------- Airjet | -8/Materials | Extracted Field Laser | -8/Materials | Extracted Robot Schematics ------------------ None Fabricated ------------ Nothing Alien Tech Used ----------------- None Achievements -------------- Achiever Just Browsing Use The Force Challenges ------------ None Game ------ Seed FlakGuidanceComputer Manual? 0 Play Time 02:05:30 Cumulative 28.1 hours Start 2024.08.14 @ 10:13:02 End 2024.08.14 @ 15:11:05 Sessions 7 Manual Loads 0 Difficulty Adventurer Special Mode None Game No. 13 Rogue 0 Adventurer 13 Explorer 0 Win Type - Total 0 Types 0/0/0/0/0/0/0/0/0 Lore% 11 Gallery% 25 Achievement% 25 Wizard Run 0 Options --------- Layout 1 ASCII 0 Keyboard 1 Movement Vi Keybinds 0 Fullscreen 2 Font 24/Terminus Map View 50x35 Zoom Use 0% Tactical HUD 0 Map Filters NONE Filters NONE Steam 1 RUN: 41535581-1a4a-4180-b9bf-b1aa5d1c8e83